[Event "Titled Tuesday Blitz December 7 2021"]
[White "Mikhailovsky, Vladimir"]
[Black "Atakhan, Abtin"]
[WhiteFideId "34105414"]
[BlackFideId "22502203"]
[WhiteElo "2409"]
[BlackElo "2119"]
[Result "1-0"]
[Round "05"]
[TimeControl "180+1"]
[Date "2021.12.07"]
[WhiteClock "0:00:08"]
[BlackClock "0:00:02"]

1. Nf3 {[%clk 0:03:00]}  Nf6 {[%clk 0:02:59]} 2. b3 {[%clk 0:03:00]}  d5 {[%clk 0:02:57]} 3. Bb2 {[%clk 0:03:01]}  e6 {[%clk 0:02:58]} 4. g3 {[%clk 0:03:01]}  g6 {[%clk 0:02:56]} 5. Bg2 {[%clk 0:03:01]}  Bg7 {[%clk 0:02:55]} 6. O-O {[%clk 0:03:02]}  O-O {[%clk 0:02:54]} 7. c4 {[%clk 0:03:01]}  b6 {[%clk 0:02:52]} 8. cxd5 {[%clk 0:02:56]}  exd5 {[%clk 0:02:52]} 9. d4 {[%clk 0:02:55]}  Nbd7 {[%clk 0:02:48]} 10. Nc3 {[%clk 0:02:50]}  Re8 {[%clk 0:02:45]} 11. Rc1 {[%clk 0:02:50]}  a6 {[%clk 0:02:44]} 12. e3 {[%clk 0:02:27]}  Bb7 {[%clk 0:02:41]} 13. Ne2 {[%clk 0:02:27]}  Rc8 {[%clk 0:02:35]} 14. Nf4 {[%clk 0:02:22]}  c5 {[%clk 0:02:30]} 15. Nd3 {[%clk 0:02:12]}  Ne4 {[%clk 0:02:26]} 16. Rc2 {[%clk 0:02:06]}  c4 {[%clk 0:02:23]} 17. Nf4 {[%clk 0:01:45]}  b5 {[%clk 0:02:17]} 18. Nd2 {[%clk 0:01:30]}  Ndf6 {[%clk 0:01:47]} 19. Nxe4 {[%clk 0:01:23]}  Nxe4 {[%clk 0:01:48]} 20. Qc1 {[%clk 0:01:05]}  Qa5 {[%clk 0:01:40]} 21. Ba1 {[%clk 0:00:45]}  Qb4 {[%clk 0:01:21]} 22. Bc3 {[%clk 0:00:37]}  Qd6 {[%clk 0:01:00]} 23. Ba5 {[%clk 0:00:35]}  h5 {[%clk 0:00:57]} 24. h4 {[%clk 0:00:34]}  Bh6 {[%clk 0:00:54]} 25. Qb2 {[%clk 0:00:21]}  Ba8 {[%clk 0:00:46]} 26. Rfc1 {[%clk 0:00:20]}  Qf6 {[%clk 0:00:43]} 27. Be1 {[%clk 0:00:19]}  Bxf4 {[%clk 0:00:23]} 28. exf4 {[%clk 0:00:20]}  Qd6 {[%clk 0:00:21]} 29. a4 {[%clk 0:00:20]}  Qb6 {[%clk 0:00:16]} 30. axb5 {[%clk 0:00:20]}  axb5 {[%clk 0:00:17]} 31. bxc4 {[%clk 0:00:20]}  dxc4 {[%clk 0:00:16]} 32. Rxc4 {[%clk 0:00:20]}  Rxc4 {[%clk 0:00:16]} 33. Rxc4 {[%clk 0:00:20]}  Nd6 {[%clk 0:00:15]} 34. Rc1 {[%clk 0:00:19]}  Bxg2 {[%clk 0:00:16]} 35. Kxg2 {[%clk 0:00:19]}  Qb7+ {[%clk 0:00:17]} 36. Kg1 {[%clk 0:00:19]}  Qf3 {[%clk 0:00:15]} 37. Qc3 {[%clk 0:00:15]}  Qe4 {[%clk 0:00:10]} 38. Bd2 {[%clk 0:00:15]}  Nc4 {[%clk 0:00:10]} 39. Re1 {[%clk 0:00:15]}  Qc6 {[%clk 0:00:09]} 40. Rxe8+ {[%clk 0:00:14]}  Qxe8 {[%clk 0:00:10]} 41. Bc1 {[%clk 0:00:12]}  Qe4 {[%clk 0:00:09]} 42. Be3 {[%clk 0:00:09]}  Qb1+ {[%clk 0:00:08]} 43. Kh2 {[%clk 0:00:09]}  Qe4 {[%clk 0:00:08]} 44. Qb3 {[%clk 0:00:09]}  Qd5 {[%clk 0:00:06]} 45. Qb4 {[%clk 0:00:08]}  Qc6 {[%clk 0:00:03]} 46. Qe7 {[%clk 0:00:08]}  Qf3 {[%clk 0:00:02]} 47. Qe8+ {[%clk 0:00:07]}  Kg7 {[%clk 0:00:02]} 48. Qxb5 {[%clk 0:00:06]}  Nxe3 {[%clk 0:00:01]} 49. Qe5+ {[%clk 0:00:06]}  Kh7 {[%clk 0:00:02]} 50. Qxe3 {[%clk 0:00:07]}  Qd5 {[%clk 0:00:02]} 51. Qe5 {[%clk 0:00:08]}  Qd7 {[%clk 0:00:03]} 52. d5 {[%clk 0:00:08]}  Qa7 {[%clk 0:00:03]} 53. Kg2 {[%clk 0:00:07]}  Qb7 {[%clk 0:00:03]} 54. Kg1 {[%clk 0:00:07]}  Qb1+ {[%clk 0:00:03]} 55. Kh2 {[%clk 0:00:08]}  Qc2 {[%clk 0:00:03]} 56. Qd4 {[%clk 0:00:08]}  Qc7 {[%clk 0:00:03]} 57. d6 {[%clk 0:00:08]}  Qd7 {[%clk 0:00:03]} 58. Qf6 {[%clk 0:00:09]}  Qa7 {[%clk 0:00:03]} 59. Kg1 {[%clk 0:00:09]}  Qd7 {[%clk 0:00:02]} 60. Qe7 {[%clk 0:00:09]}  Qf5 {[%clk 0:00:01]} 61. d7 {[%clk 0:00:09]}  Qb1+ {[%clk 0:00:01]} 62. Kg2 {[%clk 0:00:09]}  Qb7+ {[%clk 0:00:01]} 63. Kh2 {[%clk 0:00:09]}  Qf3 {[%clk 0:00:01]} 64. Qxf7+ {[%clk 0:00:08]}  Kh6 {[%clk 0:00:02]} 65. Qf8+ {[%clk 0:00:08]}  Kh7 {[%clk 0:00:02]} 66. Qe7+ {[%clk 0:00:08]}  Kh6 {[%clk 0:00:02]} 67. Qe3 {[%clk 0:00:07]}  Qd5 {[%clk 0:00:03]} 68. f5+ {[%clk 0:00:08]}  Kg7 {[%clk 0:00:03]} 69. Qe7+ {[%clk 0:00:08]}  Kh6 {[%clk 0:00:03]} 70. d8=Q {[%clk 0:00:08]}  Qxf5 {[%clk 0:00:02]} 1-0


[Site "https://www.chess.com"]

[Event "Titled Tuesday Blitz December 7 2021"]
[White "Mirzoev, Azer"]
[Black "Pham, Le Thao Nguyen"]
[WhiteFideId "13400304"]
[BlackFideId "12401226"]
[WhiteElo "2525"]
[BlackElo "2286"]
[Result "1-0"]
[Round "05"]
[TimeControl "180+1"]
[Date "2021.12.07"]
[WhiteClock "0:00:53"]
[BlackClock "0:00:02"]

1. d4 {[%clk 0:02:59]}  d5 {[%clk 0:02:59]} 2. Nf3 {[%clk 0:02:59]}  c6 {[%clk 0:02:55]} 3. Bf4 {[%clk 0:02:59]}  Bf5 {[%clk 0:02:38]} 4. e3 {[%clk 0:02:59]}  e6 {[%clk 0:02:36]} 5. c4 {[%clk 0:02:58]}  Qb6 {[%clk 0:02:30]} 6. Qb3 {[%clk 0:02:56]}  Qxb3 {[%clk 0:02:03]} 7. axb3 {[%clk 0:02:55]}  Bxb1 {[%clk 0:01:55]} 8. Rxb1 {[%clk 0:02:55]}  Nf6 {[%clk 0:01:55]} 9. Bd3 {[%clk 0:02:54]}  Nbd7 {[%clk 0:01:55]} 10. h3 {[%clk 0:02:52]}  Bb4+ {[%clk 0:01:51]} 11. Ke2 {[%clk 0:02:52]}  Ke7 {[%clk 0:01:51]} 12. g4 {[%clk 0:02:52]}  h6 {[%clk 0:01:50]} 13. Ra1 {[%clk 0:02:44]}  Bd6 {[%clk 0:01:47]} 14. Ne5 {[%clk 0:02:43]}  g5 {[%clk 0:01:45]} 15. Bg3 {[%clk 0:02:39]}  Bxe5 {[%clk 0:01:32]} 16. dxe5 {[%clk 0:02:39]}  Ne4 {[%clk 0:01:32]} 17. Bxe4 {[%clk 0:02:35]}  dxe4 {[%clk 0:01:33]} 18. b4 {[%clk 0:02:35]}  Nb6 {[%clk 0:01:26]} 19. b3 {[%clk 0:02:35]}  Rhd8 {[%clk 0:01:24]} 20. Rhd1 {[%clk 0:02:31]}  Rxd1 {[%clk 0:01:21]} 21. Kxd1 {[%clk 0:02:27]}  Rd8+ {[%clk 0:01:15]} 22. Kc2 {[%clk 0:02:25]}  a6 {[%clk 0:01:15]} 23. h4 {[%clk 0:02:23]}  Nd7 {[%clk 0:00:58]} 24. Kc3 {[%clk 0:02:12]}  c5 {[%clk 0:00:58]} 25. hxg5 {[%clk 0:01:51]}  hxg5 {[%clk 0:00:58]} 26. Rh1 {[%clk 0:01:52]}  b6 {[%clk 0:00:45]} 27. b5 {[%clk 0:01:50]}  a5 {[%clk 0:00:44]} 28. Rh5 {[%clk 0:01:43]}  Rg8 {[%clk 0:00:43]} 29. Kd2 {[%clk 0:01:32]}  Kf8 {[%clk 0:00:38]} 30. Ke2 {[%clk 0:01:31]}  Rg7 {[%clk 0:00:31]} 31. f3 {[%clk 0:01:29]}  exf3+ {[%clk 0:00:30]} 32. Kxf3 {[%clk 0:01:30]}  Kg8 {[%clk 0:00:29]} 33. Ke4 {[%clk 0:01:25]}  Nf8 {[%clk 0:00:23]} 34. Be1 {[%clk 0:01:15]}  Nd7 {[%clk 0:00:22]} 35. Bc3 {[%clk 0:01:15]}  Kf8 {[%clk 0:00:20]} 36. Kf3 {[%clk 0:01:05]}  Rg8 {[%clk 0:00:14]} 37. e4 {[%clk 0:01:01]}  Rg7 {[%clk 0:00:12]} 38. Kg3 {[%clk 0:01:00]}  Rg8 {[%clk 0:00:12]} 39. Bb2 {[%clk 0:00:56]}  Rg7 {[%clk 0:00:12]} 40. Bc1 {[%clk 0:00:55]}  Nxe5 {[%clk 0:00:10]} 41. Bxg5 {[%clk 0:00:55]}  Nd7 {[%clk 0:00:06]} 42. Bh6 {[%clk 0:00:54]}  Kg8 {[%clk 0:00:05]} 43. Bxg7 {[%clk 0:00:53]}  Kxg7 {[%clk 0:00:06]} 44. Kf4 {[%clk 0:00:53]}  Nf6 {[%clk 0:00:02]} 45. Rh1 {[%clk 0:00:53]} 1-0


[Site "https://www.chess.com"]

[Event "Titled Tuesday Blitz December 7 2021"]
[White "Narayanan, Srinath"]
[Black "Buchenau, Frank"]
[WhiteFideId "5018420"]
[BlackFideId "4604350"]
[WhiteElo "2472"]
[BlackElo "2193"]
[Result "1-0"]
[Round "05"]
[TimeControl "180+1"]
[Date "2021.12.07"]
[WhiteClock "0:00:15"]
[BlackClock "0:00:03"]

1. Nf3 {[%clk 0:03:00]}  Nf6 {[%clk 0:02:59]} 2. c4 {[%clk 0:03:01]}  e6 {[%clk 0:02:59]} 3. d4 {[%clk 0:03:00]}  b6 {[%clk 0:02:59]} 4. g3 {[%clk 0:03:00]}  Bb7 {[%clk 0:02:59]} 5. Bg2 {[%clk 0:03:00]}  Be7 {[%clk 0:03:00]} 6. O-O {[%clk 0:03:00]}  O-O {[%clk 0:03:00]} 7. a3 {[%clk 0:03:01]}  c5 {[%clk 0:02:59]} 8. Nc3 {[%clk 0:02:49]}  cxd4 {[%clk 0:02:59]} 9. Qxd4 {[%clk 0:02:50]}  Nc6 {[%clk 0:02:57]} 10. Qf4 {[%clk 0:02:46]}  Qb8 {[%clk 0:02:57]} 11. Rd1 {[%clk 0:02:45]}  Qxf4 {[%clk 0:02:55]} 12. Bxf4 {[%clk 0:02:46]}  Na5 {[%clk 0:02:44]} 13. Nd2 {[%clk 0:02:07]}  Bxg2 {[%clk 0:02:45]} 14. Kxg2 {[%clk 0:02:08]}  Rfc8 {[%clk 0:02:41]} 15. b3 {[%clk 0:01:52]}  d5 {[%clk 0:02:39]} 16. Nb5 {[%clk 0:01:52]}  dxc4 {[%clk 0:02:26]} 17. b4 {[%clk 0:01:52]}  Nb3 {[%clk 0:02:12]} 18. Nxb3 {[%clk 0:01:36]}  cxb3 {[%clk 0:02:13]} 19. Rab1 {[%clk 0:01:37]}  a6 {[%clk 0:02:02]} 20. Nd4 {[%clk 0:01:36]}  Nd5 {[%clk 0:01:58]} 21. Bd2 {[%clk 0:01:35]}  Bf6 {[%clk 0:01:55]} 22. Nxb3 {[%clk 0:01:34]}  Rc2 {[%clk 0:01:46]} 23. e4 {[%clk 0:01:26]}  Nc3 {[%clk 0:01:42]} 24. Bxc3 {[%clk 0:01:25]}  Rxc3 {[%clk 0:01:42]} 25. Rd6 {[%clk 0:01:23]}  b5 {[%clk 0:01:24]} 26. h4 {[%clk 0:01:05]}  Kf8 {[%clk 0:01:23]} 27. f4 {[%clk 0:00:56]}  Ke8 {[%clk 0:01:14]} 28. Na5 {[%clk 0:00:42]}  Rxa3 {[%clk 0:01:06]} 29. Rc1 {[%clk 0:00:26]}  Be7 {[%clk 0:01:03]} 30. Rd4 {[%clk 0:00:19]}  Rd8 {[%clk 0:00:57]} 31. Rxd8+ {[%clk 0:00:17]}  Bxd8 {[%clk 0:00:51]} 32. Nc6 {[%clk 0:00:14]}  Bb6 {[%clk 0:00:45]} 33. Ne5 {[%clk 0:00:14]}  Ra2+ {[%clk 0:00:42]} 34. Kh3 {[%clk 0:00:13]}  f6 {[%clk 0:00:35]} 35. Rc6 {[%clk 0:00:12]}  fxe5 {[%clk 0:00:19]} 36. Rxe6+ {[%clk 0:00:12]}  Kd7 {[%clk 0:00:18]} 37. Rxb6 {[%clk 0:00:13]}  exf4 {[%clk 0:00:18]} 38. gxf4 {[%clk 0:00:12]}  Kc7 {[%clk 0:00:18]} 39. Re6 {[%clk 0:00:12]}  Rb2 {[%clk 0:00:14]} 40. Re7+ {[%clk 0:00:11]}  Kd6 {[%clk 0:00:15]} 41. Rxg7 {[%clk 0:00:11]}  Rxb4 {[%clk 0:00:15]} 42. e5+ {[%clk 0:00:11]}  Ke6 {[%clk 0:00:14]} 43. Kg4 {[%clk 0:00:12]}  a5 {[%clk 0:00:12]} 44. Rxh7 {[%clk 0:00:12]}  a4 {[%clk 0:00:13]} 45. Ra7 {[%clk 0:00:13]}  Rb1 {[%clk 0:00:10]} 46. Ra6+ {[%clk 0:00:13]}  Kd5 {[%clk 0:00:09]} 47. h5 {[%clk 0:00:09]}  Ke4 {[%clk 0:00:09]} 48. e6 {[%clk 0:00:06]}  Rg1+ {[%clk 0:00:10]} 49. Kh3 {[%clk 0:00:06]}  Kf5 {[%clk 0:00:10]} 50. Kh2 {[%clk 0:00:02]}  Re1 {[%clk 0:00:07]} 51. h6 {[%clk 0:00:02]}  Rd1 {[%clk 0:00:05]} 52. h7 {[%clk 0:00:02]}  Rd8 {[%clk 0:00:05]} 53. e7 {[%clk 0:00:03]}  Rh8 {[%clk 0:00:05]} 54. Rh6 {[%clk 0:00:03]}  Kxf4 {[%clk 0:00:04]} 55. e8=Q {[%clk 0:00:01]}  Rxe8 {[%clk 0:00:04]} 56. h8=Q {[%clk 0:00:02]}  Rxh8 {[%clk 0:00:03]} 57. Rxh8 {[%clk 0:00:03]}  b4 {[%clk 0:00:03]} 58. Rh4+ {[%clk 0:00:03]}  Ke3 {[%clk 0:00:03]} 59. Rxb4 {[%clk 0:00:04]}  a3 {[%clk 0:00:03]} 60. Rb3+ {[%clk 0:00:05]}  Kd2 {[%clk 0:00:03]} 61. Rxa3 {[%clk 0:00:06]}  Kc2 {[%clk 0:00:04]} 62. Rg3 {[%clk 0:00:06]}  Kb2 {[%clk 0:00:05]} 63. Kg2 {[%clk 0:00:07]}  Kc2 {[%clk 0:00:05]} 64. Rf3 {[%clk 0:00:08]}  Kd2 {[%clk 0:00:06]} 65. Kf2 {[%clk 0:00:09]}  Kc2 {[%clk 0:00:04]} 66. Re3 {[%clk 0:00:10]}  Kd1 {[%clk 0:00:03]} 67. Re2 {[%clk 0:00:10]}  Kc1 {[%clk 0:00:03]} 68. Ke3 {[%clk 0:00:11]}  Kd1 {[%clk 0:00:03]} 69. Kd3 {[%clk 0:00:12]}  Kc1 {[%clk 0:00:04]} 70. Rd2 {[%clk 0:00:12]}  Kb1 {[%clk 0:00:04]} 71. Rc2 {[%clk 0:00:13]}  Ka1 {[%clk 0:00:03]} 72. Kc3 {[%clk 0:00:14]}  Kb1 {[%clk 0:00:03]} 73. Kb3 {[%clk 0:00:15]}  Ka1 {[%clk 0:00:03]} 74. Rc1# {[%clk 0:00:15]} 1-0


[Site "https://www.chess.com"]

[Event "Titled Tuesday Blitz December 7 2021"]
[White "Navalgund, Niranjan"]
[Black "Barria Zuniga, Daniel"]
[WhiteFideId "5030854"]
[BlackFideId "3400816"]
[WhiteElo "2290"]
[BlackElo "2414"]
[Result "1-0"]
[Round "05"]
[TimeControl "180+1"]
[Date "2021.12.07"]
[WhiteClock "0:00:33"]
[BlackClock "0:00:17"]

1. d4 {[%clk 0:02:43]}  d5 {[%clk 0:02:55]} 2. Nf3 {[%clk 0:02:43]}  c6 {[%clk 0:02:55]} 3. c4 {[%clk 0:02:44]}  dxc4 {[%clk 0:02:55]} 4. e4 {[%clk 0:02:42]}  b5 {[%clk 0:02:54]} 5. a4 {[%clk 0:02:42]}  e6 {[%clk 0:02:54]} 6. axb5 {[%clk 0:02:40]}  cxb5 {[%clk 0:02:55]} 7. b3 {[%clk 0:02:41]}  Bb4+ {[%clk 0:02:44]} 8. Bd2 {[%clk 0:02:30]}  Bxd2+ {[%clk 0:02:44]} 9. Nbxd2 {[%clk 0:02:28]}  Nf6 {[%clk 0:02:36]} 10. bxc4 {[%clk 0:02:28]}  bxc4 {[%clk 0:02:37]} 11. Bxc4 {[%clk 0:02:27]}  O-O {[%clk 0:02:37]} 12. O-O {[%clk 0:02:28]}  a5 {[%clk 0:02:37]} 13. e5 {[%clk 0:02:27]}  Nd5 {[%clk 0:02:36]} 14. Ne4 {[%clk 0:02:27]}  Ba6 {[%clk 0:02:35]} 15. Bxd5 {[%clk 0:02:24]}  exd5 {[%clk 0:02:31]} 16. Ng3 {[%clk 0:02:22]}  Bxf1 {[%clk 0:02:26]} 17. Qxf1 {[%clk 0:02:22]}  Nc6 {[%clk 0:02:21]} 18. Nf5 {[%clk 0:02:17]}  Qd7 {[%clk 0:02:20]} 19. Qd3 {[%clk 0:02:12]}  Nb4 {[%clk 0:02:17]} 20. Qb1 {[%clk 0:02:12]}  h6 {[%clk 0:02:06]} 21. Nd6 {[%clk 0:02:02]}  Rfb8 {[%clk 0:02:06]} 22. h3 {[%clk 0:01:58]}  a4 {[%clk 0:01:49]} 23. Ra3 {[%clk 0:01:53]}  Na6 {[%clk 0:01:42]} 24. Qa2 {[%clk 0:01:34]}  Nc7 {[%clk 0:01:37]} 25. Nh4 {[%clk 0:01:27]}  Rb4 {[%clk 0:01:17]} 26. Rg3 {[%clk 0:01:11]}  a3 {[%clk 0:00:49]} 27. Nhf5 {[%clk 0:01:06]}  Rb2 {[%clk 0:00:49]} 28. Rxg7+ {[%clk 0:01:05]}  Kf8 {[%clk 0:00:49]} 29. Qa1 {[%clk 0:00:57]}  a2 {[%clk 0:00:46]} 30. Rh7 {[%clk 0:00:49]}  Kg8 {[%clk 0:00:46]} 31. Rg7+ {[%clk 0:00:47]}  Kh8 {[%clk 0:00:45]} 32. Qxb2 {[%clk 0:00:38]}  a1=Q+ {[%clk 0:00:44]} 33. Qxa1 {[%clk 0:00:37]}  Rxa1+ {[%clk 0:00:44]} 34. Kh2 {[%clk 0:00:38]}  Rd1 {[%clk 0:00:20]} 35. Nxf7+ {[%clk 0:00:37]}  Qxf7 {[%clk 0:00:20]} 36. Rxf7 {[%clk 0:00:38]}  Ne6 {[%clk 0:00:21]} 37. Rd7 {[%clk 0:00:36]}  Nxd4 {[%clk 0:00:20]} 38. Ne3 {[%clk 0:00:33]}  Rd3 {[%clk 0:00:17]} 39. Rxd5 {[%clk 0:00:33]} 1-0


[Site "https://www.chess.com"]

[Event "Titled Tuesday Blitz December 7 2021"]
[White "Nenezic, Marko"]
[Black "Tologon tegin, Semetei"]
[WhiteFideId "912123"]
[BlackFideId "13800574"]
[WhiteElo "2484"]
[BlackElo "2224"]
[Result "0-1"]
[Round "05"]
[TimeControl "180+1"]
[Date "2021.12.07"]
[WhiteClock "0:00:09"]
[BlackClock "0:00:05"]

1. d4 {[%clk 0:02:34]}  g6 {[%clk 0:02:54]} 2. c4 {[%clk 0:02:34]}  Bg7 {[%clk 0:02:53]} 3. e4 {[%clk 0:02:34]}  d6 {[%clk 0:02:52]} 4. Nf3 {[%clk 0:02:33]}  Bg4 {[%clk 0:02:50]} 5. Be2 {[%clk 0:02:30]}  e5 {[%clk 0:02:38]} 6. d5 {[%clk 0:02:27]}  h5 {[%clk 0:02:32]} 7. b3 {[%clk 0:02:23]}  Nd7 {[%clk 0:02:30]} 8. O-O {[%clk 0:02:16]}  Bh6 {[%clk 0:02:29]} 9. Ba3 {[%clk 0:02:16]}  a5 {[%clk 0:02:26]} 10. Ne1 {[%clk 0:02:11]}  Bxe2 {[%clk 0:02:24]} 11. Qxe2 {[%clk 0:02:12]}  b6 {[%clk 0:02:24]} 12. Nc3 {[%clk 0:01:58]}  Ne7 {[%clk 0:02:20]} 13. Nd3 {[%clk 0:01:52]}  O-O {[%clk 0:02:19]} 14. Bb2 {[%clk 0:01:50]}  Kh7 {[%clk 0:01:53]} 15. Rae1 {[%clk 0:01:46]}  Ng8 {[%clk 0:01:29]} 16. g3 {[%clk 0:01:39]}  Qg5 {[%clk 0:01:24]} 17. Kh1 {[%clk 0:01:37]}  Rae8 {[%clk 0:01:22]} 18. f4 {[%clk 0:01:35]}  exf4 {[%clk 0:01:16]} 19. gxf4 {[%clk 0:01:36]}  Qh4 {[%clk 0:01:15]} 20. Nb5 {[%clk 0:01:18]}  Qd8 {[%clk 0:01:04]} 21. e5 {[%clk 0:01:04]}  Nc5 {[%clk 0:00:58]} 22. Nxc5 {[%clk 0:01:01]}  bxc5 {[%clk 0:00:58]} 23. Bc3 {[%clk 0:00:53]}  dxe5 {[%clk 0:00:32]} 24. fxe5 {[%clk 0:00:51]}  c6 {[%clk 0:00:31]} 25. Nd6 {[%clk 0:00:44]}  cxd5 {[%clk 0:00:29]} 26. Nxe8 {[%clk 0:00:44]}  Rxe8 {[%clk 0:00:26]} 27. Rxf7+ {[%clk 0:00:43]}  Bg7 {[%clk 0:00:26]} 28. e6 {[%clk 0:00:37]}  d4 {[%clk 0:00:26]} 29. Qe5 {[%clk 0:00:37]}  Nf6 {[%clk 0:00:20]} 30. Bd2 {[%clk 0:00:37]}  Qa8+ {[%clk 0:00:17]} 31. Kg1 {[%clk 0:00:37]}  Qf3 {[%clk 0:00:16]} 32. Bg5 {[%clk 0:00:26]}  Qg4+ {[%clk 0:00:16]} 33. Kh1 {[%clk 0:00:21]}  Qf3+ {[%clk 0:00:16]} 34. Kg1 {[%clk 0:00:22]}  Qg4+ {[%clk 0:00:17]} 35. Kf2 {[%clk 0:00:20]}  Rxe6 {[%clk 0:00:05]} 36. Qxe6 {[%clk 0:00:14]}  Qxg5 {[%clk 0:00:05]} 37. Qe5 {[%clk 0:00:10]}  Ng4+ {[%clk 0:00:04]} 38. Kf1 {[%clk 0:00:09]}  Nxe5 {[%clk 0:00:05]} 0-1


[Site "https://www.chess.com"]

[Event "Titled Tuesday Blitz December 7 2021"]
[White "Pacheco Lugo, Alejandro Jose"]
[Black "Kosteniuk, Alexandra"]
[WhiteFideId "3903745"]
[BlackFideId "4128125"]
[WhiteElo "2125"]
[BlackElo "2475"]
[Result "1-0"]
[Round "05"]
[TimeControl "180+1"]
[Date "2021.12.07"]
[WhiteClock "0:00:28"]
[BlackClock "0:00:37"]

1. e4 {[%clk 0:03:00]}  c6 {[%clk 0:02:59]} 2. d4 {[%clk 0:03:00]}  d5 {[%clk 0:02:59]} 3. e5 {[%clk 0:03:01]}  c5 {[%clk 0:03:00]} 4. dxc5 {[%clk 0:03:00]}  e6 {[%clk 0:02:59]} 5. a3 {[%clk 0:02:59]}  Bxc5 {[%clk 0:02:57]} 6. Qg4 {[%clk 0:02:55]}  Ne7 {[%clk 0:02:56]} 7. Nf3 {[%clk 0:02:54]}  Ng6 {[%clk 0:02:54]} 8. Bd3 {[%clk 0:02:52]}  Nc6 {[%clk 0:02:52]} 9. O-O {[%clk 0:02:45]}  Qc7 {[%clk 0:02:43]} 10. Re1 {[%clk 0:02:33]}  h5 {[%clk 0:02:42]} 11. Qg3 {[%clk 0:02:28]}  h4 {[%clk 0:02:34]} 12. Qg4 {[%clk 0:02:28]}  Nce7 {[%clk 0:02:22]} 13. b4 {[%clk 0:02:23]}  Bb6 {[%clk 0:02:22]} 14. Bb2 {[%clk 0:02:23]}  Nf5 {[%clk 0:02:18]} 15. Nbd2 {[%clk 0:02:02]}  Bd7 {[%clk 0:02:00]} 16. c4 {[%clk 0:02:01]}  Nge7 {[%clk 0:01:31]} 17. c5 {[%clk 0:01:53]}  Bxc5 {[%clk 0:01:29]} 18. bxc5 {[%clk 0:01:49]}  Qxc5 {[%clk 0:01:29]} 19. Rec1 {[%clk 0:01:43]}  Qa5 {[%clk 0:01:27]} 20. Qb4 {[%clk 0:01:40]}  Qd8 {[%clk 0:01:26]} 21. Qg4 {[%clk 0:01:11]}  h3 {[%clk 0:01:12]} 22. g3 {[%clk 0:01:09]}  Bc6 {[%clk 0:01:11]} 23. Nd4 {[%clk 0:01:05]}  Nxd4 {[%clk 0:01:11]} 24. Bxd4 {[%clk 0:01:06]}  g6 {[%clk 0:01:11]} 25. a4 {[%clk 0:01:03]}  Rh5 {[%clk 0:01:06]} 26. Nf3 {[%clk 0:00:56]}  Qa5 {[%clk 0:01:01]} 27. Qf4 {[%clk 0:00:53]}  Nf5 {[%clk 0:00:59]} 28. Bc5 {[%clk 0:00:48]}  d4 {[%clk 0:00:52]} 29. g4 {[%clk 0:00:43]}  Rh8 {[%clk 0:00:44]} 30. gxf5 {[%clk 0:00:42]}  gxf5 {[%clk 0:00:45]} 31. Nxd4 {[%clk 0:00:36]}  Rg8+ {[%clk 0:00:44]} 32. Kf1 {[%clk 0:00:36]}  Bg2+ {[%clk 0:00:43]} 33. Ke2 {[%clk 0:00:36]}  Rg4 {[%clk 0:00:42]} 34. Qe3 {[%clk 0:00:36]}  f4 {[%clk 0:00:37]} 35. Qd2 {[%clk 0:00:30]}  f3+ {[%clk 0:00:37]} 36. Ke3 {[%clk 0:00:28]} 1-0


[Site "https://www.chess.com"]

[Event "Titled Tuesday Blitz December 7 2021"]
[White "Pakleza, Zbigniew"]
[Black "Di Nicolantonio, Lucas"]
[WhiteFideId "1119290"]
[BlackFideId "680460"]
[WhiteElo "2526"]
[BlackElo "2381"]
[Result "1-0"]
[Round "05"]
[TimeControl "180+1"]
[Date "2021.12.07"]
[WhiteClock "0:00:37"]
[BlackClock "0:01:06"]

1. d4 {[%clk 0:03:00]}  Nf6 {[%clk 0:02:58]} 2. Nf3 {[%clk 0:03:00]}  e6 {[%clk 0:02:58]} 3. Bf4 {[%clk 0:02:59]}  d5 {[%clk 0:02:56]} 4. e3 {[%clk 0:02:58]}  Bd6 {[%clk 0:02:56]} 5. Bg3 {[%clk 0:02:58]}  O-O {[%clk 0:02:54]} 6. Nbd2 {[%clk 0:02:59]}  c5 {[%clk 0:02:55]} 7. c3 {[%clk 0:02:59]}  Qc7 {[%clk 0:02:55]} 8. Ne5 {[%clk 0:02:58]}  Nbd7 {[%clk 0:02:53]} 9. f4 {[%clk 0:02:58]}  Ne4 {[%clk 0:02:42]} 10. Nxe4 {[%clk 0:02:56]}  dxe4 {[%clk 0:02:43]} 11. Nc4 {[%clk 0:02:53]}  f5 {[%clk 0:02:15]} 12. d5 {[%clk 0:02:20]}  e5 {[%clk 0:01:57]} 13. fxe5 {[%clk 0:02:01]}  Nxe5 {[%clk 0:01:56]} 14. Bxe5 {[%clk 0:01:54]}  Bxe5 {[%clk 0:01:54]} 15. d6 {[%clk 0:01:55]}  Qd8 {[%clk 0:01:33]} 16. Qd5+ {[%clk 0:01:43]}  Kh8 {[%clk 0:01:32]} 17. Nxe5 {[%clk 0:01:39]}  Qe8 {[%clk 0:01:18]} 18. d7 {[%clk 0:01:32]}  Bxd7 {[%clk 0:01:18]} 19. Nxd7 {[%clk 0:01:33]}  Rd8 {[%clk 0:01:19]} 20. O-O-O {[%clk 0:01:33]}  Rf7 {[%clk 0:01:19]} 21. Nf6 {[%clk 0:01:12]}  Rxd5 {[%clk 0:01:12]} 22. Nxe8 {[%clk 0:01:10]}  Rxd1+ {[%clk 0:01:13]} 23. Kxd1 {[%clk 0:01:11]}  Re7 {[%clk 0:01:13]} 24. Bb5 {[%clk 0:00:42]}  a6 {[%clk 0:01:12]} 25. Nd6 {[%clk 0:00:43]}  Re6 {[%clk 0:01:10]} 26. Nxb7 {[%clk 0:00:37]}  axb5 {[%clk 0:01:08]} 27. Nxc5 {[%clk 0:00:37]}  Ra6 {[%clk 0:01:06]} 1-0


[Site "https://www.chess.com"]

[Event "Titled Tuesday Blitz December 7 2021"]
[White "Przybylski, Wojciech"]
[Black "Tanenbaum, Zachary"]
[WhiteFideId "1117599"]
[BlackFideId "2060850"]
[WhiteElo "2247"]
[BlackElo "2168"]
[Result "1-0"]
[Round "05"]
[TimeControl "180+1"]
[Date "2021.12.07"]
[WhiteClock "0:01:32"]
[BlackClock "0:00:31"]

1. e4 {[%clk 0:02:55]}  e5 {[%clk 0:01:42]} 2. Nf3 {[%clk 0:02:53]}  Nc6 {[%clk 0:01:43]} 3. Bb5 {[%clk 0:02:53]}  a6 {[%clk 0:01:43]} 4. Ba4 {[%clk 0:02:54]}  d6 {[%clk 0:01:44]} 5. h3 {[%clk 0:02:53]}  Nf6 {[%clk 0:01:44]} 6. d3 {[%clk 0:02:52]}  b5 {[%clk 0:01:44]} 7. Bb3 {[%clk 0:02:52]}  Na5 {[%clk 0:01:44]} 8. O-O {[%clk 0:02:48]}  Be7 {[%clk 0:01:44]} 9. c4 {[%clk 0:02:46]}  Nxb3 {[%clk 0:01:43]} 10. axb3 {[%clk 0:02:45]}  Bb7 {[%clk 0:01:44]} 11. Nc3 {[%clk 0:02:44]}  O-O {[%clk 0:01:44]} 12. cxb5 {[%clk 0:02:32]}  axb5 {[%clk 0:01:44]} 13. Rxa8 {[%clk 0:02:32]}  Bxa8 {[%clk 0:01:40]} 14. Nxb5 {[%clk 0:02:32]}  Nd7 {[%clk 0:01:32]} 15. Be3 {[%clk 0:02:26]}  f5 {[%clk 0:01:30]} 16. Nc3 {[%clk 0:02:16]}  Nf6 {[%clk 0:01:11]} 17. exf5 {[%clk 0:02:11]}  d5 {[%clk 0:01:12]} 18. d4 {[%clk 0:02:06]}  e4 {[%clk 0:01:12]} 19. Ne5 {[%clk 0:02:04]}  Qc8 {[%clk 0:01:07]} 20. g4 {[%clk 0:02:04]}  Bd6 {[%clk 0:00:58]} 21. f4 {[%clk 0:01:56]}  exf3 {[%clk 0:00:50]} 22. Rxf3 {[%clk 0:01:33]}  Bxe5 {[%clk 0:00:31]} 23. dxe5 {[%clk 0:01:33]}  d4 {[%clk 0:00:31]} 24. Bxd4 {[%clk 0:01:32]} 1-0


[Site "https://www.chess.com"]